bitfinex-derivatives/quotes_BTCF0:USTF0_20260131
["timestamp","ask_amount","ask_price","bid_price","bid_amount"]
[1769875100812,0.28736834,81335.0,81310.0,0.28506724]
[1769875101214,0.27505634,81326.0,81308.0,0.00012854]
[1769875101618,0.27505634,81326.0,81309.0,0.17866734]
[1769875102018,0.27505634,81326.0,81310.0,0.17866734]
[1769875102218,0.27505634,81326.0,81308.0,0.00012854]
[1769875102423,0.012314,81321.0,81308.0,0.00012854]
[1769875103925,0.013314,81321.0,81308.0,0.17879588]
[1769875104223,0.27505634,81346.0,81308.0,1.2e-07]
[1769875104524,0.28736934,81333.0,81308.0,1.2e-07]
[1769875105029,0.27505634,81333.0,81308.0,1.2e-07]
[1769875105219,0.01245582,81332.0,81308.0,1.2e-07]
[1769875105523,0.28736934,81330.0,81303.0,0.09972]
[1769875106018,0.09972,81331.0,81272.0,0.01323693]
[1769875106019,0.27505634,81326.0,81272.0,0.01323693]
[1769875106220,0.012316,81313.0,81283.0,0.28506724]
[1769875106517,9.344e-05,81312.0,81287.0,0.28506724]
[1769875106719,9.344e-05,81312.0,81289.0,0.28506724]
[1769875107914,9.344e-05,81312.0,81288.0,0.5668]
[1769875107915,0.012313,81331.0,81303.0,0.28506724]
[1769875108224,0.012313,81331.0,81305.0,0.28506724]
[1769875108425,0.16672418,81332.0,81305.0,0.28506724]
[1769875108624,0.012313,81328.0,81305.0,0.28506724]
[1769875108822,5.616e-05,81327.0,81305.0,0.28506724]
[1769875109328,5.616e-05,81327.0,81305.0,0.28606724]
[1769875109918,5.616e-05,81327.0,81305.0,0.28506724]
[1769875112828,0.2751125,81327.0,81305.0,0.28506724]
[1769875113431,0.27505634,81324.0,81304.0,0.09972]
[1769875113623,0.012314,81321.0,81304.0,0.09972]
[1769875113823,5.616e-05,81327.0,81305.0,0.28506724]
[1769875114016,0.27505634,81326.0,81304.0,0.09972]
[1769875114421,0.28737034,81323.0,81304.0,0.09972]
[1769875114615,0.28737034,81323.0,81299.0,0.28506724]
[1769875114616,0.012315,81318.0,81299.0,0.28506724]
[1769875114822,0.012314,81322.0,81300.0,0.09976]
[1769875115017,0.012314,81322.0,81301.0,0.28506724]
[1769875115426,0.012315,81319.0,81300.0,0.09976]
[1769875115626,0.012315,81319.0,81301.0,0.28506724]
[1769875115933,0.012315,81318.0,81303.0,0.28506724]
[1769875116124,0.012316,81313.0,81303.0,0.38482724]
[1769875116519,0.012316,81313.0,81304.0,0.28506724]
[1769875118032,0.012316,81313.0,81303.0,0.09976]
[1769875119735,0.012317,81304.0,81289.0,0.29051088]
[1769875120135,0.012317,81304.0,81290.0,0.09976]
[1769875120635,0.012317,81304.0,81289.0,0.29051088]
[1769875120834,0.012317,81304.0,81290.0,0.09976]
[1769875121227,0.012317,81304.0,81290.0,0.27859607]
[1769875121430,0.012316,81308.0,81290.0,0.27859607]
[1769875121833,0.09976,81311.0,81290.0,0.27859607]
[1769875121834,0.012317,81305.0,81290.0,0.27859607]
[1769875122739,0.09976,81311.0,81288.0,0.09976]
[1769875122740,0.272802,81310.0,81288.0,0.09976]
[1769875123532,0.012318,81298.0,81288.0,0.09976]
[1769875123742,5.616e-05,81297.0,81288.0,0.09976]
[1769875125139,5.616e-05,81297.0,81288.0,0.37835607]
[1769875126136,5.616e-05,81297.0,81288.0,0.09976]
[1769875126433,0.28517616,81297.0,81281.0,0.09976]
[1769875126639,0.27285816,81297.0,81279.0,0.09976]
[1769875126840,0.27285816,81297.0,81276.0,0.37835607]
[1769875126841,0.01232,81287.0,81276.0,0.37835607]
[1769875127035,0.01232,81287.0,81276.0,0.09976]
[1769875127233,0.012319,81291.0,81276.0,0.09976]
[1769875127434,0.012319,81291.0,81276.0,0.37835607]
[1769875127639,0.012319,81291.0,81276.0,0.09976]
[1769875127840,0.012319,81291.0,81277.0,0.27859607]
[1769875128239,5.616e-05,81297.0,81277.0,0.27859607]
[1769875130839,5.616e-05,81297.0,81277.0,0.27959607]
[1769875132735,0.09976,81301.0,81279.0,0.27859607]
[1769875132934,0.272802,81314.0,81283.0,0.27859607]
[1769875132935,0.012316,81311.0,81283.0,0.27859607]
[1769875133130,0.012316,81311.0,81285.0,0.27859607]
[1769875133340,0.012315,81315.0,81291.0,0.27859607]
[1769875133540,0.012315,81315.0,81293.0,0.27859607]
[1769875133733,0.012315,81315.0,81295.0,0.27859607]
[1769875134639,0.012315,81319.0,81297.0,0.27859607]
[1769875134842,0.09976,81324.0,81304.0,0.27859607]
[1769875135033,0.012313,81327.0,81306.0,0.27859607]
[1769875135543,0.012313,81332.0,81307.0,0.27859607]
[1769875135735,0.12578316,81331.0,81307.0,0.27859607]
[1769875135944,0.12578316,81330.0,81308.0,0.27859607]
[1769875136130,0.012313,81332.0,81308.0,0.27859607]
[1769875136335,0.012313,81330.0,81308.0,0.27859607]
[1769875137037,0.012313,81330.0,81308.0,0.27959607]
[1769875137836,0.012313,81330.0,81308.0,0.27859607]
[1769875138037,0.012313,81330.0,81308.0,0.27959607]
[1769875139040,0.012314,81324.0,81308.0,0.001]
[1769875139241,0.012314,81324.0,81308.0,0.10076]
[1769875139648,0.012313,81328.0,81309.0,0.27859607]
[1769875140247,0.012313,81328.0,81309.0,0.37835607]
[1769875140447,0.272802,81333.0,81310.0,0.27859607]
[1769875140448,0.012313,81332.0,81310.0,0.27859607]
[1769875140643,0.012313,81330.0,81310.0,0.27859607]
[1769875141338,0.35999872,81376.0,81305.0,0.09976]
[1769875141339,0.012311,81342.0,81315.0,0.27859607]
[1769875141542,0.12550179,81341.0,81317.0,0.27859607]
[1769875141747,0.012311,81342.0,81319.0,0.27859607]
[1769875141945,0.012311,81340.0,81319.0,0.27859607]
[1769875142144,0.012311,81340.0,81321.0,0.27859607]
[1769875142442,0.012311,81340.0,81320.0,0.09976]
[1769875142443,0.012311,81340.0,81322.0,0.74919607]
[1769875142744,0.285114,81337.0,81318.0,0.09976]
[1769875142950,0.285114,81337.0,81320.0,0.09976]
[1769875143146,0.285114,81337.0,81318.0,0.09976]
[1769875143345,0.285114,81337.0,81318.0,0.19952]
[1769875143542,0.285114,81337.0,81321.0,0.001]
[1769875143751,0.112071,81342.0,81321.0,0.27959607]
[1769875143943,0.112071,81342.0,81323.0,0.27859607]
[1769875143944,0.12313078,81341.0,81323.0,0.27859607]
[1769875144149,0.272802,81349.0,81323.0,0.27859607]
[1769875144451,0.22286793,81348.0,81323.0,0.27859607]
[1769875144653,0.12310793,81347.0,81323.0,0.27859607]
[1769875144844,0.12310793,81346.0,81323.0,0.27859607]
[1769875145049,0.272802,81357.0,81323.0,0.27859607]
[1769875145244,0.012309,81354.0,81328.0,0.27859607]
[1769875145455,0.12308868,81353.0,81330.0,0.27859607]
[1769875145649,0.012309,81354.0,81330.0,0.27859607]
[1769875145948,0.12303945,81353.0,81332.0,0.27859607]
[1769875146155,0.01280617,81358.0,81332.0,0.27859607]
[1769875146156,0.28560817,81358.0,81332.0,0.27859607]
[1769875146340,0.272802,81356.0,81332.0,0.27859607]
[1769875146542,0.12277481,81355.0,81332.0,0.27859607]
[1769875146744,0.12277481,81354.0,81334.0,0.27859607]
[1769875146946,0.09976,81361.0,81336.0,0.29940058]
[1769875147147,0.12275107,81360.0,81336.0,0.29940058]
[1769875147353,0.09976,81361.0,81338.0,0.29940058]
[1769875147550,0.001,81356.0,81340.0,0.29940058]
[1769875148053,0.001,81356.0,81342.0,0.29940058]
[1769875148655,0.012307,81370.0,81342.0,0.29940058]
[1769875148952,0.12260016,81369.0,81342.0,0.29940058]
[1769875149149,0.09976,81370.0,81342.0,0.31171158]
[1769875149345,0.37460986,81370.0,81342.0,0.31171158]
[1769875150046,0.001,81369.0,81342.0,0.31171158]
[1769875150649,0.001,81369.0,81350.0,0.29940058]
[1769875150850,0.10076,81370.0,81352.0,0.29940058]
[1769875151051,0.001,81370.0,81352.0,0.31170958]
[1769875151258,0.012305,81384.0,81358.0,0.29940058]
[1769875151444,0.112064,81388.0,81360.0,0.31170858]
[1769875151649,0.09976,81388.0,81368.0,0.29940058]
[1769875152553,0.09976,81388.0,81369.0,0.09976]
[1769875152755,0.09976,81388.0,81370.0,0.29940058]
[1769875153548,0.27484986,81391.0,81370.0,0.29940058]
[1769875154150,0.012303,81393.0,81371.0,0.09976]
[1769875154355,0.012303,81393.0,81372.0,0.29940058]
[1769875154954,0.012303,81397.0,81374.0,0.29940058]
[1769875155254,0.09972,81398.0,81374.0,0.29940058]
[1769875155454,0.09972,81398.0,81376.0,0.29940058]
[1769875156958,0.09972,81398.0,81376.0,0.30040058]
[1769875160962,0.09972,81398.0,81378.0,0.29940058]
[1769875161364,0.09972,81398.0,81377.0,0.09968]
[1769875161365,0.09972,81398.0,81380.0,0.29940058]
[1769875162657,0.09972,81398.0,81381.0,0.09976]
[1769875162865,0.09972,81398.0,81382.0,0.29940058]
[1769875164566,0.37456986,81398.0,81382.0,0.001]
[1769875164865,0.27484986,81393.0,81381.0,0.09670586]
[1769875165868,0.27484986,81393.0,81370.0,0.29940058]
[1769875165869,0.27484986,81393.0,81371.0,0.09968]
[1769875166067,0.012304,81392.0,81371.0,0.19944]
[1769875166771,0.28715386,81392.0,81371.0,0.19944]
[1769875168167,0.27484986,81421.0,81381.0,0.29940058]
[1769875168368,0.27484986,81417.0,81385.0,0.29940058]
[1769875168666,0.3977279,81416.0,81385.0,0.29940058]
[1769875168870,0.27484986,81416.0,81387.0,0.29940058]
[1769875169367,0.27484986,81416.0,81383.0,0.09976]
[1769875169368,0.27484986,81415.0,81388.0,0.39916058]
[1769875169567,0.27484986,81415.0,81388.0,0.29940058]
[1769875169768,0.27484986,81415.0,81389.0,0.39916058]
[1769875169964,0.0123,81417.0,81389.0,0.29940058]
[1769875170174,0.27484986,81416.0,81391.0,0.29940058]
[1769875170572,0.27484986,81416.0,81392.0,0.09976]
[1769875170773,0.27484986,81416.0,81393.0,0.29940058]
[1769875170972,0.27584986,81415.0,81393.0,0.29930058]
[1769875172666,0.27484986,81407.0,81382.0,0.09968]
[1769875172880,0.12284408,81414.0,81383.0,0.09976]
[1769875172881,0.27484986,81400.0,81383.0,0.09976]
[1769875173086,0.27484986,81400.0,81376.0,0.29940058]
[1769875173288,0.28715186,81400.0,81376.0,0.29940058]
[1769875173587,0.28715186,81400.0,81377.0,0.39916058]
[1769875173776,0.28715186,81400.0,81377.0,0.29940058]
[1769875173980,0.28715186,81400.0,81378.0,0.09976]
[1769875174184,0.28715186,81400.0,81374.0,0.39916058]
[1769875174384,0.28815186,81400.0,81374.0,0.39916058]
[1769875175085,0.28815186,81400.0,81375.0,0.29940058]
[1769875175483,0.27484986,81394.0,81360.0,0.29940058]
[1769875175791,0.27484986,81376.0,81359.0,0.09968]
[1769875175985,0.37452986,81375.0,81353.0,0.39908058]
[1769875176183,0.27484986,81374.0,81354.0,0.09976]
[1769875179192,0.09968,81375.0,81355.0,0.29539297]
[1769875179382,0.12264152,81374.0,81355.0,0.29539297]
[1769875179587,0.09968,81375.0,81355.0,0.29539297]
[1769875179789,0.12264152,81374.0,81355.0,0.29539297]
[1769875179990,0.09968,81375.0,81355.0,0.29539297]
[1769875180190,0.1226416,81374.0,81355.0,0.29539297]
[1769875180386,0.1226416,81373.0,81355.0,0.29539297]
[1769875180589,0.012306,81374.0,81355.0,0.29539297]
[1769875180899,0.12267211,81373.0,81355.0,0.29539297]
[1769875181081,0.012306,81374.0,81355.0,0.29539297]
[1769875181392,0.12268885,81373.0,81355.0,0.29539297]
[1769875181592,0.012306,81374.0,81355.0,0.29539297]
[1769875181793,0.12267059,81373.0,81355.0,0.29539297]
[1769875181997,0.012306,81374.0,81355.0,0.29539297]
[1769875182186,0.12267032,81373.0,81355.0,0.29539297]
[1769875182390,0.012306,81374.0,81355.0,0.29539297]
[1769875182695,0.12264629,81373.0,81355.0,0.29539297]
[1769875182892,0.012306,81374.0,81355.0,0.29539297]
[1769875183096,0.12264632,81373.0,81355.0,0.29539297]
[1769875183397,0.09968,81374.0,81355.0,0.29539297]
[1769875183593,0.012306,81373.0,81355.0,0.29539297]
[1769875184191,0.012306,81373.0,81356.0,0.09976]
[1769875184800,0.012306,81377.0,81357.0,0.28844281]
[1769875184993,0.12260438,81376.0,81357.0,0.28844281]
[1769875185189,0.23459038,81375.0,81357.0,0.28844281]
[1769875185490,0.012307,81370.0,81356.0,0.09976]
[1769875185692,0.29657024,81370.0,81356.0,0.09976]
[1769875186098,0.09968,81375.0,81339.0,0.28844281]
[1769875186099,0.012309,81357.0,81339.0,0.28844281]
[1769875186290,0.012309,81357.0,81341.0,0.28844281]
[1769875186490,0.012309,81357.0,81340.0,0.09968]
[1769875186690,0.012309,81357.0,81341.0,0.28844281]
[1769875186897,0.012309,81357.0,81340.0,0.09968]
[1769875187298,0.012309,81357.0,81340.0,0.38812281]
[1769875188404,0.012308,81361.0,81341.0,0.28844281]
[1769875188700,0.28426324,81370.0,81341.0,0.28844281]
[1769875188997,0.012307,81366.0,81343.0,0.28844281]
[1769875189198,0.28426324,81370.0,81343.0,0.28844281]
[1769875189199,0.012308,81364.0,81343.0,0.28844281]
[1769875189990,0.012308,81361.0,81343.0,0.28844281]
[1769875190204,0.09968,81365.0,81343.0,0.28844281]
[1769875190701,0.012309,81356.0,81343.0,0.28844281]
[1769875190901,0.012309,81356.0,81340.0,0.09968]
[1769875191293,0.012309,81356.0,81340.0,0.38812281]
[1769875191494,0.012309,81356.0,81341.0,0.28844281]
[1769875193206,0.012308,81360.0,81341.0,0.28844281]
[1769875194102,0.09968,81365.0,81341.0,0.28844281]
[1769875194403,0.12239075,81364.0,81341.0,0.28844281]
[1769875194704,0.12239075,81363.0,81341.0,0.28844281]
[1769875195003,0.012309,81360.0,81341.0,0.28844281]
[1769875195701,0.28426324,81377.0,81341.0,0.28844281]
[1769875195996,0.012308,81366.0,81341.0,0.28844281]
[1769875196396,0.09972,81365.0,81341.0,0.28844281]
[1769875198604,0.09972,81365.0,81341.0,0.28944281]
[1769875198906,0.112028,81365.0,81341.0,0.28944281]
[1769875199302,0.112028,81365.0,81341.0,0.28844281]
[1769875200105,0.012308,81362.0,81341.0,0.28844281]
[1769875200508,0.09972,81365.0,81341.0,0.28844281]
[1769875201011,0.28426324,81368.0,81341.0,0.28844281]
[1769875201400,0.28426324,81368.0,81341.0,0.28944281]
[1769875201601,0.28426324,81379.0,81341.0,0.28944281]
[1769875201805,0.28426324,81377.0,81341.0,0.28944281]
[1769875202005,0.28426324,81375.0,81341.0,0.28944281]
[1769875202305,0.012308,81365.0,81341.0,0.28844281]
[1769875202903,0.01231,81349.0,81331.0,0.28860238]
[1769875203108,0.28426324,81352.0,81331.0,0.28860238]
[1769875203410,0.28426324,81352.0,81331.0,0.00015957]
[1769875204003,0.32424,81365.0,81331.0,0.00015957]
[1769875204004,0.28426324,81350.0,81331.0,0.00015957]
[1769875204202,0.32424,81365.0,81331.0,0.00015957]
[1769875204203,0.012311,81345.0,81331.0,0.00015957]
[1769875204402,0.38398324,81348.0,81331.0,0.00015957]
[1769875205109,0.09972,81348.0,81341.0,0.001]
[1769875205306,0.012308,81364.0,81342.0,0.28844281]
[1769875205499,0.1218767,81363.0,81342.0,0.28844281]
[1769875205704,0.40720473,81371.0,81342.0,0.28844281]
[1769875206012,0.012308,81361.0,81342.0,0.28844281]
[1769875206612,0.29657124,81365.0,81342.0,0.28844281]
[1769875206813,0.12177913,81364.0,81342.0,0.28844281]
[1769875207014,0.29657124,81365.0,81342.0,0.28844281]
[1769875207015,0.12177913,81363.0,81342.0,0.28844281]
[1769875207214,0.28426324,81365.0,81342.0,0.28844281]
[1769875207409,0.12178404,81364.0,81342.0,0.28844281]
[1769875207709,0.09972,81372.0,81347.0,0.29075108]
[1769875207902,0.12053114,81371.0,81347.0,0.29075108]
[1769875208107,0.09972,81372.0,81349.0,0.29075108]
[1769875208303,0.09972,81372.0,81352.0,0.29075108]
[1769875208510,0.09972,81372.0,81349.0,0.09972]
[1769875208511,0.012305,81385.0,81356.0,0.29075108]
[1769875208710,0.49473514,81384.0,81358.0,0.29075108]
[1769875208910,0.12052147,81383.0,81358.0,0.29075108]
[1769875209112,0.27449367,81381.0,81358.0,0.29075108]
[1769875209318,0.12052147,81380.0,81358.0,0.29075108]
[1769875209515,0.12052147,81379.0,81360.0,0.29075108]
[1769875209809,0.12052147,81379.0,81338.0,0.24494117]
[1769875209810,0.09972,81384.0,81366.0,0.29075108]
[1769875210115,0.09972,81384.0,81370.0,0.29075108]
[1769875210316,0.12045175,81383.0,81370.0,0.29075108]
[1769875210512,0.12045175,81382.0,81370.0,0.29075108]
[1769875210709,0.09972,81384.0,81370.0,0.29075108]
[1769875210710,0.12045175,81381.0,81370.0,0.29075108]
[1769875210912,0.12045175,81380.0,81370.0,0.29075108]
[1769875211211,0.09972,81384.0,81370.0,0.29075108]
[1769875211411,0.12041767,81383.0,81370.0,0.29075108]
[1769875211712,0.12041767,81382.0,81370.0,0.29075108]
[1769875211915,0.09972,81384.0,81370.0,0.29075108]
[1769875212216,0.12041596,81383.0,81370.0,0.29075108]
[1769875212418,0.12041596,81382.0,81370.0,0.29075108]
[1769875212613,0.09972,81384.0,81370.0,0.29175108]
[1769875212813,0.12038465,81383.0,81370.0,0.29175108]
[1769875213013,0.12038465,81382.0,81370.0,0.29175108]
[1769875213216,0.09972,81384.0,81370.0,0.29175108]
[1769875213414,0.12035562,81383.0,81370.0,0.29175108]
[1769875213610,0.09972,81384.0,81370.0,0.29175108]
[1769875213808,0.12035562,81383.0,81370.0,0.29175108]
[1769875214117,0.09972,81384.0,81370.0,0.29075108]
[1769875214416,0.12035278,81383.0,81370.0,0.29075108]
[1769875214619,0.09972,81384.0,81370.0,0.29075108]
[1769875214920,0.12032902,81383.0,81370.0,0.29075108]
[1769875215116,0.09972,81384.0,81370.0,0.29075108]
[1769875217823,0.09972,81384.0,81371.0,0.29075108]
[1769875218311,0.012302,81400.0,81371.0,0.29075108]
[1769875218615,0.12318919,81399.0,81377.0,0.29075108]
[1769875218810,0.12318919,81398.0,81377.0,0.29075108]
[1769875219018,0.12318919,81397.0,81377.0,0.29075108]
[1769875219216,0.12318919,81396.0,81377.0,0.29075108]
[1769875219416,0.12318919,81395.0,81377.0,0.29075108]
[1769875219616,0.09968,81399.0,81377.0,0.29075108]
[1769875219916,0.12290337,81398.0,81377.0,0.29075108]
[1769875220224,0.12290337,81398.0,81370.0,0.09968]
[1769875220225,0.27449367,81396.0,81371.0,0.29075108]
[1769875220415,0.39739704,81395.0,81371.0,0.29075108]
[1769875220616,0.12290337,81394.0,81371.0,0.29075108]
[1769875220821,0.12290337,81393.0,81371.0,0.29075108]
[1769875221020,0.12290337,81392.0,81371.0,0.29075108]
[1769875221220,0.27449367,81395.0,81371.0,0.29075108]
[1769875221416,0.12287182,81394.0,81371.0,0.29075108]
[1769875221612,0.12287182,81393.0,81371.0,0.29075108]
[1769875221820,0.12287182,81392.0,81371.0,0.29075108]
[1769875222019,0.12163423,81391.0,81371.0,0.29075108]
[1769875222222,0.06599692,81393.0,81371.0,0.29075108]
[1769875222423,0.12163059,81392.0,81371.0,0.29075108]
[1769875222722,0.12163059,81391.0,81371.0,0.29075108]
[1769875222915,0.34056582,81395.0,81371.0,0.29075108]
[1769875223111,0.12163059,81394.0,81371.0,0.30305808]
[1769875223315,0.12163059,81393.0,81371.0,0.30305808]
[1769875223520,0.12163059,81392.0,81371.0,0.30305808]
[1769875223825,0.12163059,81391.0,81371.0,0.30305808]
[1769875224119,0.34056582,81395.0,81371.0,0.30305808]
[1769875224329,0.12163048,81394.0,81371.0,0.29075108]
[1769875224622,0.12163048,81393.0,81373.0,0.29075108]
[1769875224818,0.12163048,81392.0,81373.0,0.29075108]
[1769875225020,0.12163048,81391.0,81373.0,0.29075108]
[1769875225220,0.34056582,81395.0,81373.0,0.29075108]
[1769875225522,0.12163534,81394.0,81373.0,0.29075108]
[1769875225727,0.12163534,81393.0,81373.0,0.29075108]
[1769875225928,0.12163534,81392.0,81373.0,0.29075108]
[1769875226118,0.12163534,81391.0,81373.0,0.29075108]
[1769875226424,0.34056582,81395.0,81373.0,0.29075108]
[1769875226623,0.12163334,81394.0,81373.0,0.29075108]
[1769875226823,0.12163334,81393.0,81373.0,0.29075108]
[1769875227029,0.34056582,81395.0,81373.0,0.29075108]
[1769875227030,0.12163334,81392.0,81373.0,0.29075108]
[1769875227218,0.12163334,81391.0,81373.0,0.29075108]
[1769875227530,0.34056582,81395.0,81373.0,0.29075108]
[1769875227730,0.12163215,81394.0,81373.0,0.29075108]
[1769875228018,0.12163215,81393.0,81373.0,0.29075108]
[1769875228327,0.12163215,81392.0,81375.0,0.29075108]
[1769875228518,0.06607215,81395.0,81375.0,0.29075108]
[1769875228825,0.12163139,81394.0,81375.0,0.29075108]
[1769875229124,0.12163139,81393.0,81375.0,0.29075108]
[1769875229321,0.12163139,81392.0,81375.0,0.29075108]
[1769875229527,0.27449367,81397.0,81375.0,0.29075108]
[1769875229721,0.12163521,81396.0,81375.0,0.29075108]
[1769875229920,0.12163521,81395.0,81375.0,0.29075108]
[1769875230222,0.12163521,81394.0,81377.0,0.29075108]
[1769875230428,0.1681251,81399.0,81377.0,0.29075108]
[1769875230429,0.12163521,81393.0,81377.0,0.29075108]
[1769875230727,0.1681251,81399.0,81377.0,0.29075108]
[1769875230927,0.12163517,81398.0,81377.0,0.29075108]
[1769875231120,0.12163517,81397.0,81377.0,0.29075108]
[1769875231321,0.1681251,81399.0,81377.0,0.29075108]
[1769875231520,0.12163262,81398.0,81377.0,0.29075108]
[1769875231722,0.12163262,81397.0,81377.0,0.29075108]
[1769875231921,0.44261877,81399.0,81379.0,0.29075108]
[1769875232122,0.12163262,81398.0,81379.0,0.29075108]
[1769875232324,0.12163262,81397.0,81379.0,0.29075108]
[1769875232524,0.44261877,81399.0,81379.0,0.29075108]
[1769875232724,0.12081893,81398.0,81379.0,0.29075108]
[1769875232920,0.12081893,81397.0,81379.0,0.29075108]
[1769875233226,0.27449367,81398.0,81379.0,0.29075108]
[1769875233427,0.12086132,81397.0,81379.0,0.29075108]
[1769875233628,0.27449367,81398.0,81379.0,0.29075108]
[1769875233827,0.12086132,81397.0,81379.0,0.29075108]
[1769875234029,0.12086132,81396.0,81379.0,0.29075108]
[1769875234330,0.39542812,81395.0,81379.0,0.29075108]
[1769875234530,0.27449367,81395.0,81379.0,0.29075108]
[1769875235230,0.12102977,81394.0,81379.0,0.29075108]
[1769875235430,0.27449367,81395.0,81379.0,0.29075108]
[1769875235725,0.12102995,81394.0,81379.0,0.29075108]
[1769875235924,0.44261877,81399.0,81379.0,0.29075108]
[1769875236118,0.12102995,81398.0,81379.0,0.29075108]
[1769875236320,0.12102995,81397.0,81380.0,0.30305608]
[1769875236636,0.12102995,81396.0,81380.0,0.30305608]
[1769875236833,0.12102995,81395.0,81380.0,0.30305608]
[1769875237029,0.44261877,81399.0,81380.0,0.30305608]
[1769875237030,0.1681251,81399.0,81380.0,0.30305608]
[1769875237324,0.12109331,81398.0,81380.0,0.30305608]
[1769875237525,0.12109331,81397.0,81380.0,0.30305608]
[1769875237727,0.12109331,81396.0,81380.0,0.30305608]
[1769875238026,0.12109331,81395.0,81380.0,0.30305608]
[1769875238226,0.12109331,81394.0,81380.0,0.30305608]
[1769875238426,0.12109331,81393.0,81380.0,0.30305608]
[1769875238732,0.28899131,81398.0,81380.0,0.30305608]
[1769875238930,0.12122276,81397.0,81380.0,0.30305608]
[1769875239229,0.12122276,81396.0,81380.0,0.30305608]
[1769875239531,0.12122276,81395.0,81380.0,0.30305608]
[1769875239735,0.12122276,81394.0,81380.0,0.30305608]
[1769875239927,0.12122276,81393.0,81380.0,0.30305608]
[1769875240128,0.12122276,81392.0,81380.0,0.30305608]
[1769875240330,0.1681251,81399.0,81380.0,0.30305608]
[1769875240628,0.12125175,81398.0,81380.0,0.30305608]
[1769875240830,0.12125175,81397.0,81380.0,0.30305608]
[1769875241031,0.12125175,81396.0,81384.0,0.29953973]
[1769875241231,0.12125175,81395.0,81384.0,0.29953973]
[1769875241430,0.12125175,81394.0,81384.0,0.29953973]
[1769875241634,0.12125175,81393.0,81384.0,0.29953973]
[1769875241929,0.09968,81399.0,81384.0,0.29953973]
[1769875242135,0.12124913,81398.0,81386.0,0.29953973]
[1769875242427,0.12124913,81397.0,81386.0,0.29953973]
[1769875242631,0.09968,81399.0,81386.0,0.29953973]
[1769875242833,0.09968,81399.0,81362.0,0.64262117]
[1769875242834,0.27672458,81397.0,81376.0,0.29953973]
[1769875243032,0.27672458,81395.0,81379.0,0.31184473]
[1769875243233,0.39796155,81394.0,81379.0,0.31184473]
[1769875243432,0.12123697,81393.0,81380.0,0.09968]
[1769875244732,0.27672458,81392.0,81380.0,0.09968]
[1769875244929,0.12126383,81391.0,81380.0,0.09968]
[1769875245129,0.12126383,81390.0,81380.0,0.09968]
[1769875245328,0.27672458,81392.0,81380.0,0.09968]
[1769875245522,0.12127505,81391.0,81380.0,0.09968]
[1769875245723,0.12127505,81390.0,81380.0,0.09968]
[1769875246033,0.27672458,81392.0,81380.0,0.09968]
[1769875246233,0.12114911,81391.0,81380.0,0.09968]
[1769875246434,0.12114911,81390.0,81380.0,0.09968]
[1769875246734,0.27672458,81392.0,81377.0,0.31184573]
[1769875246935,0.12115936,81391.0,81377.0,0.31184573]
[1769875247128,0.27672458,81392.0,81377.0,0.31184573]
[1769875247329,0.12117431,81391.0,81377.0,0.31184573]
[1769875247529,0.12117431,81390.0,81377.0,0.31184573]
[1769875247731,0.27672458,81398.0,81378.0,0.39921973]
[1769875247933,0.27672458,81396.0,81378.0,0.39921973]
[1769875248133,0.12117431,81395.0,81378.0,0.39921973]
[1769875248336,0.12117431,81394.0,81378.0,0.39921973]
[1769875248529,0.12117431,81394.0,81381.0,0.29953973]
[1769875248732,0.12117431,81393.0,81381.0,0.29953973]
[1769875248929,0.30666396,81421.0,81396.0,0.29953973]
[1769875249144,0.30666396,81421.0,81401.0,0.29953973]
[1769875249145,0.06849011,81421.0,81401.0,0.29953973]
[1769875249334,0.09968,81423.0,81402.0,0.29953973]
[1769875249535,0.27672458,81422.0,81402.0,0.29953973]
[1769875249739,0.1681828,81423.0,81402.0,0.29953973]
[1769875251341,0.44490738,81423.0,81402.0,0.29953973]
[1769875251754,0.27672458,81422.0,81402.0,0.29953973]
[1769875252253,0.1681828,81423.0,81402.0,0.29953973]
[1769875252454,0.1681828,81423.0,81404.0,0.29953973]
[1769875253656,0.27672458,81433.0,81406.0,0.29953973]
[1769875253855,0.34439314,81433.0,81406.0,0.29953973]
[1769875254047,0.27672458,81431.0,81406.0,0.29953973]
[1769875254248,0.27672458,81430.0,81406.0,0.29953973]
[1769875254851,0.27672458,81428.0,81406.0,0.29953973]
[1769875255052,0.27672458,81428.0,81401.0,0.09968]
[1769875255053,0.27672458,81428.0,81408.0,0.29953973]
[1769875255545,0.12282447,81427.0,81408.0,0.29953973]
[1769875255751,0.27672458,81426.0,81408.0,0.29953973]
[1769875255949,0.12282447,81427.0,81408.0,0.29953973]
[1769875256249,0.75460458,81431.0,81408.0,0.29953973]
[1769875256651,0.12282371,81430.0,81408.0,0.29953973]
[1769875256953,0.39954829,81430.0,81408.0,0.29953973]
[1769875257547,0.09964,81432.0,81405.0,0.09964]
[1769875257548,0.09964,81432.0,81413.0,0.29953973]
[1769875257853,0.09964,81432.0,81419.0,0.29953973]
[1769875259145,0.09964,81432.0,81416.0,0.31183973]
[1769875259853,0.09964,81432.0,81417.0,0.29953973]
[1769875260057,0.09964,81432.0,81418.0,0.31183973]
[1769875260858,0.11636475,81431.0,81418.0,0.31183973]
[1769875261053,0.09964,81432.0,81418.0,0.31183973]
[1769875261357,0.11636475,81431.0,81418.0,0.31183973]
[1769875261557,0.09964,81432.0,81418.0,0.31183973]
[1769875261760,0.11633826,81431.0,81418.0,0.31183973]
[1769875262054,0.11633826,81430.0,81418.0,0.31183973]
[1769875262353,0.09964,81432.0,81418.0,0.31183973]
[1769875262655,0.47892,81441.0,81422.0,0.29953973]
[1769875263057,0.16811744,81444.0,81424.0,0.29953973]
[1769875263355,0.27672458,81443.0,81424.0,0.29953973]
[1769875263554,0.27672458,81443.0,81416.0,0.09964]
[1769875263555,0.27672458,81442.0,81416.0,0.09964]
[1769875263858,0.27672458,81442.0,81402.0,0.29953973]
[1769875264055,0.24546212,81439.0,81401.0,0.09964]
[1769875264361,0.27672458,81441.0,81391.0,0.09964]
[1769875264362,0.5221867,81431.0,81391.0,0.09964]
[1769875264556,0.27672458,81429.0,81391.0,0.09964]
[1769875264758,0.57944,81430.0,81394.0,0.29953973]
[1769875264759,0.27672458,81425.0,81394.0,0.29953973]
[1769875265154,0.27672458,81425.0,81399.0,0.29953973]
[1769875265354,0.27672458,81423.0,81399.0,0.29953973]
[1769875266059,0.27672458,81421.0,81399.0,0.29953973]
[1769875266362,0.27672458,81419.0,81399.0,0.29953973]
[1769875267363,0.27456453,81414.0,81391.0,0.09964]
[1769875267858,0.27456453,81412.0,81391.0,0.09964]
[1769875268560,0.4798,81419.0,81391.0,0.09964]
[1769875268561,0.27456453,81410.0,81391.0,0.09964]
[1769875268755,0.27456453,81408.0,81391.0,0.09964]
[1769875269151,0.27456453,81408.0,81379.0,0.28526594]
[1769875269152,0.27456453,81406.0,81379.0,0.28526594]